bitfinex/quotes_SOLUSD_20240626
["timestamp","ask_amount","ask_price","bid_price","bid_amount"]
[1719418663238,7.2952,137.08,137.04,7.2971]
[1719418663414,7.294,137.1,137.05,7.2963]
[1719418663614,20.0,137.09,137.05,7.2963]
[1719418663937,20.0,137.09,137.06,7.296]
[1719418664429,20.0,137.09,137.06,25.5361]
[1719418664616,20.0,137.1,137.06,18.2401]
[1719418664822,20.0,137.11,137.08,7.2948]
[1719418665135,20.0,137.12,137.08,7.2948]
[1719418665430,7.2934,137.11,137.07,25.5328]
[1719418666318,27.293,137.12,137.07,25.5328]
[1719418667513,7.2935,137.11,137.07,25.5328]
[1719418667715,7.2935,137.11,137.07,18.2375]
[1719418668135,7.2935,137.11,137.07,25.533]
[1719418668742,20.0,137.12,137.07,25.533]
[1719418668917,7.2938,137.11,137.06,13.9023]
[1719418669922,7.293,137.12,137.06,24.8452]
[1719418670243,20.0,137.11,137.08,7.295]
[1719418671232,20.0,137.11,137.07,7.2953]
[1719418673236,7.294,137.1,137.06,18.2389]
[1719418673443,27.2936,137.11,137.06,25.5348]
[1719418673819,20.0,137.11,137.07,7.2952]
[1719418674015,7.294,137.1,137.06,25.5347]
[1719418674220,7.2935,137.11,137.06,25.5347]
[1719418674626,7.4631,137.12,137.07,7.2954]
[1719418674841,20.0,137.11,137.07,7.2954]
[1719418675921,20.0,137.11,137.08,7.2949]
[1719418676138,20.0,137.11,137.08,18.2372]
[1719418676442,3.83358171,137.15,137.1,18.2345]
[1719418676646,16.6521,137.16,137.11,7.2934]
[1719418676647,7.2909,137.16,137.11,7.2934]
[1719418676955,7.2904,137.17,137.12,7.2926]
[1719418677120,7.2904,137.17,137.1,18.2345]
[1719418677121,7.2909,137.16,137.1,18.2345]
[1719418677325,7.2904,137.17,137.12,7.2927]
[1719418677530,7.2907,137.16,137.11,7.2933]
[1719418677737,7.2917,137.15,137.1,25.5282]
[1719418677924,20.0,137.14,137.11,7.2933]
[1719418678132,7.2902,137.17,137.12,18.2321]
[1719418678329,20.0,137.16,137.12,18.2321]
[1719418678540,20.0,137.17,137.13,7.292]
[1719418678843,27.2902,137.17,137.13,7.292]
[1719418679057,27.2902,137.17,137.12,25.5248]
[1719418679344,20.0,137.17,137.13,7.2923]
[1719418679728,27.2902,137.17,137.13,7.2923]
[1719418680140,20.0,137.17,137.13,7.2923]
[1719418680937,20.0,137.17,137.12,25.5248]
[1719418681142,7.2904,137.17,137.12,25.5248]
[1719418681442,27.291,137.16,137.11,7.2933]
[1719418681630,20.0,137.16,137.12,7.2925]
[1719418681836,20.0,137.16,137.13,7.2918]
[1719418682038,20.0,137.17,137.13,25.5226]
[1719418682727,20.0,137.17,137.14,7.2917]
[1719418683054,20.0,137.17,137.14,7.2915]
[1719418683246,20.0,137.18,137.15,26.90371657]
[1719418683547,20.0,137.19,137.15,25.5191]
[1719418684129,11.12128171,137.22,137.17,7.29]
[1719418684448,27.2881,137.21,137.17,7.29]
[1719418684946,20.0,137.21,137.17,7.29]
[1719418685143,7.2886,137.2,137.16,7.2905]
[1719418685345,20.0,137.21,137.13,6.0962]
[1719418685529,7.29,137.18,137.13,13.3885]
[1719418686335,20.0,137.17,137.13,6.0962]
[1719418686536,7.29,137.18,137.13,13.3884]
[1719418686733,20.0,137.17,137.14,7.2917]
[1719418687248,20.0,137.18,137.14,7.2917]
[1719418687646,20.0,137.18,137.15,7.291]
[1719418687858,20.0,137.19,137.15,7.291]
[1719418688141,27.2892,137.19,137.14,25.5211]
[1719418688352,20.0,137.19,137.13,6.0962]
[1719418688551,7.2906,137.17,137.12,23.6697]
[1719418689592,20.0,137.16,137.12,23.6697]
[1719418690048,20.0,137.16,137.13,7.2922]
[1719418690251,20.0,137.17,137.13,7.2922]
[1719418691435,27.2906,137.17,137.12,23.6698]
[1719418691636,7.2908,137.16,137.12,16.3772]
[1719418691955,20.0,137.17,137.1,13.7898]
[1719418692251,0.34,137.16,137.11,7.2933]
[1719418692745,7.631,137.16,137.11,7.2933]
[1719418692954,20.0,137.15,137.11,7.2933]
[1719418693461,20.0,137.15,137.12,7.2928]
[1719418693668,0.17,137.16,137.1,6.4964]
[1719418693669,20.0,137.16,137.1,6.4964]
[1719418693964,7.2894,137.19,137.14,25.5203]
[1719418694143,7.2902,137.17,137.13,7.2922]
[1719418694460,18.562,137.2,137.12,7.2926]
[1719418694663,7.2903,137.17,137.12,7.2926]
[1719418695044,7.2903,137.17,137.11,54.698]
[1719418695045,7.2908,137.16,137.11,25.5254]
[1719418695257,18.562,137.2,137.11,18.2322]
[1719418695258,7.2914,137.15,137.11,18.2322]
[1719418695454,7.2914,137.15,137.11,25.5254]
[1719418695644,7.2909,137.16,137.11,25.5254]
[1719418696444,0.17,137.17,137.1,6.4964]
[1719418696445,20.0,137.15,137.1,6.4964]
[1719418696644,7.2922,137.14,137.1,6.4964]
[1719418697263,27.2915,137.15,137.1,13.7902]
[1719418699444,20.0,137.15,137.09,25.529]
[1719418699665,7.2927,137.13,137.09,18.2348]
[1719418699843,20.0,137.12,137.09,18.2348]
[1719418700448,27.2929,137.12,137.07,7.2953]
[1719418701378,0.17,137.11,137.07,7.2953]
[1719418701675,0.17,137.11,137.05,7.2963]
[1719418701676,7.2943,137.1,137.05,7.2963]
[1719418701992,20.0,137.09,137.06,7.296]
[1719418702684,20.0,137.09,137.06,25.5361]
[1719418702851,20.0,137.1,137.08,7.2947]
[1719418703174,20.17,137.11,137.08,25.5321]
[1719418703354,20.0,137.1,137.08,25.5321]
[1719418703675,20.0,137.12,137.09,7.2944]
[1719418703976,20.0,137.12,137.08,18.2375]
[1719418704182,20.0,137.13,137.08,18.2375]
[1719418704346,20.0,137.14,137.13,7.2923]
[1719418704668,3.83358171,137.18,137.12,18.2317]
[1719418704669,7.2907,137.16,137.12,18.2317]
[1719418704849,7.2911,137.16,137.11,7.293]
[1719418705047,7.2913,137.15,137.1,7.2937]
[1719418705271,7.2909,137.16,137.11,7.2932]
[1719418705450,7.2909,137.16,137.11,25.5266]
[1719418705883,27.2913,137.15,137.11,25.5266]
[1719418706245,20.0,137.15,137.12,7.2928]
[1719418706571,7.2901,137.18,137.13,7.2922]
[1719418706858,20.0,137.17,137.15,7.2909]
[1719418707054,20.0,137.17,137.15,18.2275]
[1719418707258,20.0,137.17,137.15,25.5186]
[1719418707471,20.0,137.19,137.15,25.5186]
[1719418707961,20.0,137.19,137.16,7.2906]
[1719418708158,27.2886,137.2,137.15,25.5185]
[1719418708758,7.2894,137.19,137.15,18.2275]
[1719418708967,20.0,137.18,137.15,18.2275]
[1719418709347,20.0,137.18,137.13,22.5964]
[1719418709348,27.2897,137.18,137.13,22.5964]
[1719418710459,20.0,137.18,137.14,7.2917]
[1719418711641,20.0,137.18,137.14,25.5211]
[1719418711845,20.0,137.18,137.14,18.2294]
[1719418712045,7.2884,137.21,137.16,7.2905]
[1719418712264,20.0,137.2,137.16,7.2905]
[1719418712561,27.2888,137.2,137.15,7.2911]
[1719418712954,20.0,137.2,137.14,18.2294]
[1719418713263,7.2889,137.2,137.15,7.2912]
[1719418713463,20.0,137.19,137.15,7.2912]
[1719418714354,27.2892,137.19,137.15,7.2912]
[1719418715845,27.2892,137.19,137.14,25.521]
[1719418716046,20.0,137.19,137.15,7.2911]
[1719418716250,7.2882,137.21,137.16,7.2906]
[1719418716465,20.0,137.2,137.16,7.2906]
[1719418717255,20.0,137.2,137.17,7.2901]
[1719418717455,20.34,137.22,137.16,25.5171]
[1719418717770,7.2883,137.21,137.16,25.5171]
[1719418717958,20.0,137.22,137.18,18.2237]
[1719418718560,20.0,137.25,137.18,25.5133]
[1719418718769,20.0,137.25,137.18,18.2237]
[1719418718972,7.2878,137.22,137.18,18.2237]
[1719418719170,7.2878,137.22,137.17,7.2899]
[1719418721086,7.2872,137.23,137.18,7.2895]
[1719418721269,20.0,137.22,137.18,7.2895]
[1719418722970,27.2877,137.22,137.17,18.2243]
[1719418723375,20.0,137.22,137.18,7.2896]
[1719418725687,7.2882,137.21,137.17,7.2901]
[1719418725865,27.2886,137.2,137.15,25.518]
[1719418726882,27.2886,137.2,137.15,18.2269]
[1719418727068,27.2886,137.2,137.16,7.2905]
[1719418727687,7.2895,137.19,137.15,18.2269]
[1719418727878,20.0,137.18,137.15,18.2269]
[1719418730475,27.2896,137.18,137.13,7.2921]
[1719418730676,20.0,137.18,137.15,7.2912]
[1719418730861,20.0,137.18,137.1,36.4676]
[1719418730862,20.0,137.18,137.13,18.2295]
[1719418731067,20.0,137.18,137.14,7.2914]
[1719418731578,27.2898,137.18,137.14,7.2914]
[1719418731883,27.2898,137.18,137.13,25.5216]
[1719418732083,20.0,137.18,137.14,7.2917]
[1719418732789,27.2897,137.18,137.13,25.5216]
[1719418733784,20.0,137.18,137.15,18.2281]
[1719418733987,7.2877,137.22,137.17,7.2902]
[1719418734294,3.83268162,137.24,137.16,7.2904]
[1719418734295,27.2882,137.21,137.16,7.2904]
[1719418734465,27.2882,137.21,137.17,7.2901]
[1719418735288,27.2882,137.21,137.16,25.5172]
[1719418735501,7.2889,137.2,137.16,18.2266]
[1719418736794,20.0,137.21,137.15,7.291]
[1719418736972,7.2894,137.19,137.14,7.2917]
[1719418737886,7.4583,137.21,137.16,7.2907]
[1719418738087,20.17,137.2,137.16,7.2907]
[1719418738485,35.7991,137.2,137.17,7.29]
[1719418738795,35.7991,137.2,137.16,7.2905]
[1719418739177,43.0878,137.2,137.16,7.2905]
[1719418739895,35.7991,137.2,137.16,7.2905]
[1719418740075,43.0878,137.2,137.16,7.2905]
[1719418740891,7.2893,137.19,137.15,25.5191]
[1719418741402,35.7991,137.2,137.1,53.0103]
[1719418741584,35.7991,137.2,137.13,7.2919]
[1719418741585,7.29,137.18,137.13,7.2919]
[1719418741985,27.2902,137.17,137.13,7.2919]
[1719418742172,7.2902,137.17,137.12,25.5243]
[1719418742377,20.0,137.16,137.12,25.5243]
[1719418742578,35.7287,137.16,137.11,13.7945]
[1719418742788,7.2913,137.15,137.1,25.5284]
[1719418742982,20.0,137.14,137.1,25.5284]
[1719418743688,26.85,137.11,137.1,25.5284]
[1719418744289,26.85,137.11,137.07,18.2383]
[1719418744501,20.0,137.14,137.07,18.2383]
[1719418744502,7.2926,137.13,137.08,7.2946]
[1719418744799,20.0,137.12,137.09,7.2944]
[1719418745401,20.0,137.12,137.08,7.2949]
[1719418745698,20.0,137.12,137.07,18.2383]
[1719418745699,20.0,137.12,137.09,7.2944]
[1719418746501,23.0537,137.11,137.07,18.2383]
[1719418746708,20.0,137.1,137.07,18.2383]
[1719418746887,27.294,137.1,137.05,7.2965]
[1719418747802,20.0,137.1,137.06,25.536]
[1719418748101,20.0,137.1,137.04,36.4831]
[1719418748292,15.7603,137.11,137.1,7.2939]
[1719418748486,7.2918,137.14,137.1,18.2348]
[1719418748682,20.0,137.13,137.09,7.2943]
[1719418748883,20.0,137.13,137.1,7.2937]
[1719418749085,27.2927,137.13,137.09,18.236]
[1719418749512,7.2929,137.12,137.07,7.2953]
[1719418750184,20.0,137.13,137.06,25.5349]
[1719418750185,7.2936,137.11,137.06,25.5349]
[1719418751197,14.1198,137.12,137.07,7.2953]
[1719418751806,6.8268,137.12,137.08,25.5319]
[1719418752000,20.0,137.13,137.08,18.2373]
[1719418752301,27.462,137.14,137.09,7.2942]
[1719418752508,27.462,137.14,137.1,7.2938]
[1719418752695,27.462,137.14,137.09,7.2942]
[1719418753801,7.2923,137.13,137.09,7.2942]
[1719418754006,20.0,137.12,137.07,7.2954]
[1719418754200,7.2928,137.13,137.07,7.2954]
[1719418754402,20.0,137.12,137.09,7.2944]
[1719418754584,20.0,137.12,137.08,25.5321]
[1719418754789,20.0,137.12,137.09,7.2944]
[1719418754989,20.0,137.13,137.1,18.2346]
[1719418755198,27.2919,137.14,137.1,18.2346]
[1719418756916,20.0,137.14,137.06,18.2389]
[1719418757095,20.0,137.14,137.08,7.2947]
[1719418757294,7.2925,137.13,137.08,7.2947]
[1719418757508,20.0,137.12,137.06,18.2389]
[1719418757703,0.17,137.13,137.06,18.2389]
[1719418758006,20.0,137.14,137.05,6.3566]
[1719418758210,20.0,137.14,137.13,7.2923]
[1719418758393,22.2559,137.15,137.12,18.2322]
[1719418758589,22.7095,137.19,137.13,1.45847641]
[1719418758796,22.7095,137.19,137.14,18.229]
[1719418758995,20.0,137.18,137.14,18.229]
[1719418759201,16.3419,137.19,137.16,7.2904]
[1719418759810,16.3419,137.19,137.15,7.2911]
[1719418760695,23.631,137.19,137.14,25.5207]
[1719418760916,7.2898,137.18,137.14,18.229]
[1719418761220,7.2898,137.18,137.13,7.2921]
[1719418762631,7.4607,137.17,137.11,7.2932]
[1719418762918,30.0,137.15,137.07,42.9434]
[1719418763111,30.0,137.15,137.1,18.2342]
[1719418763415,20.0,137.14,137.1,25.5278]
[1719418763810,30.0,137.13,137.1,25.5278]
[1719418764009,30.0,137.13,137.11,7.2933]
[1719418765418,30.0,137.13,137.1,25.528]
[1719418765613,30.0,137.13,137.1,25.5279]
[1719418765923,30.0,137.13,137.1,18.2342]
[1719418766128,30.0,137.13,137.09,7.2943]
[1719418766419,20.0,137.12,137.08,7.2949]
[1719418766602,30.0,137.11,137.08,7.2949]
[1719418767117,30.0,137.11,137.07,18.2378]
[1719418767118,30.0,137.11,137.09,7.294]
[1719418768515,30.0,137.11,137.1,7.2939]
[1719418770411,30.0,137.11,137.09,18.236]
[1719418771019,30.0,137.11,137.09,25.5303]
[1719418771318,30.0,137.11,137.08,7.2948]
[1719418772109,30.0,137.11,137.09,7.2943]
[1719418772700,30.0,137.11,137.08,18.2374]
[1719418772923,30.0,137.11,137.08,25.5323]
[1719418773716,30.0,137.11,137.09,7.2944]
[1719418773903,30.0,137.11,137.1,7.2939]
[1719418774099,30.0,137.11,137.09,7.2942]
[1719418774424,30.0,137.11,137.08,25.5322]
[1719418775225,30.0,137.11,137.09,7.2944]
[1719418775431,30.0,137.11,137.1,7.2939]
[1719418776815,30.0,137.11,137.06,18.2401]
[1719418777022,30.0,137.11,137.08,7.2948]
[1719418777525,30.0,137.11,137.09,7.2944]
[1719418777716,30.0,137.11,137.08,25.5322]
[1719418778226,30.0,137.11,137.09,7.2943]
[1719418779122,30.0,137.11,137.1,25.5287]
[1719418779506,22.8332,137.17,137.1,25.5287]
[1719418779507,7.2909,137.16,137.11,7.2931]
[1719418779714,20.0,137.15,137.11,7.2932]
[1719418780025,20.0,137.15,137.1,25.5285]
[1719418780026,27.2914,137.15,137.1,25.5285]
[1719418780727,7.2922,137.14,137.09,7.2944]
[1719418781518,27.4614,137.15,137.1,7.2938]
[1719418781722,27.2914,137.15,137.1,7.2938]
[1719418781922,27.2914,137.15,137.1,8.31486365]
[1719418782509,27.2914,137.15,137.1,7.2938]
[1719418783920,27.2914,137.15,137.11,7.2933]
[1719418784321,20.0,137.15,137.11,7.2933]
[1719418785229,27.2914,137.15,137.11,7.2933]
[1719418785910,27.2914,137.15,137.1,7.2937]
[1719418786724,27.2914,137.15,137.11,7.2933]
[1719418788328,20.0,137.15,137.12,7.2928]
[1719418788531,20.0,137.16,137.12,7.2928]
[1719418788715,27.2908,137.16,137.12,25.5248]
[1719418789031,7.2913,137.15,137.11,7.2931]
[1719418789208,27.2909,137.16,137.11,7.2931]
[1719418789408,7.2913,137.15,137.11,7.2931]
[1719418789609,7.2913,137.15,137.11,18.2334]
[1719418790038,7.2913,137.15,137.1,7.2937]
[1719418790609,7.2918,137.14,137.1,7.2937]
[1719418790813,7.2925,137.13,137.09,25.5303]
[1719418791621,20.0,137.16,137.07,36.4759]
[1719418791622,26.85,137.1,137.08,7.2948]
[1719418791824,7.2929,137.12,137.08,7.2948]
[1719418792425,7.2924,137.13,137.09,7.2944]
[1719418792626,20.0,137.12,137.09,7.2944]
[1719418792826,20.0,137.12,137.1,7.2937]
[1719418793028,7.2914,137.15,137.11,7.2934]
[1719418793324,20.0,137.14,137.1,25.5274]
[1719418793527,27.2918,137.14,137.1,25.5274]
[1719418795329,20.0,137.14,137.1,25.5274]
[1719418795627,20.0,137.14,137.1,25.5273]
[1719418797124,27.2919,137.14,137.1,18.2336]
[1719418797534,7.2923,137.13,137.09,7.2943]
[1719418798039,20.0,137.14,137.11,7.2931]
[1719418798236,7.2918,137.14,137.1,25.5282]
[1719418798539,27.2914,137.15,137.1,25.5282]
[1719418800135,20.0,137.15,137.04,36.4841]
[1719418800441,7.2944,137.1,137.05,7.2964]
[1719418800637,7.2946,137.09,137.04,25.5387]
[1719418800936,7.2951,137.08,137.04,18.2417]
[1719418801443,27.2946,137.09,137.04,25.5388]
[1719418801825,20.0,137.09,137.05,7.2965]
[1719418802236,20.0,137.09,137.04,18.2417]
[1719418802237,20.0,137.09,137.06,7.2959]
[1719418802437,20.0,137.1,137.07,7.2953]
[1719418802640,27.2937,137.11,137.06,25.5356]
[1719418803742,27.2937,137.11,137.04,7.297]
[1719418803743,7.2948,137.09,137.04,7.297]
[1719418803920,27.2937,137.11,137.06,7.2958]
[1719418804339,27.2937,137.11,137.05,25.5377]
[1719418804542,7.294,137.1,137.05,25.5377]
[1719418804917,20.0,137.09,137.05,25.5377]
[1719418805332,20.0,137.09,137.05,18.2414]
[1719418805527,20.0,137.11,137.05,18.2414]
[1719418806343,7.2939,137.1,137.05,25.5378]
[1719418806635,27.2946,137.09,137.04,7.2971]
[1719418806842,7.294,137.1,137.05,7.2965]
[1719418807039,20.0,137.09,137.05,7.2965]
[1719418807938,20.0,137.09,137.06,7.2958]
[1719418808148,20.0,137.11,137.06,7.2958]
[1719418808349,20.0,137.11,137.04,18.2425]
[1719418808350,20.0,137.11,137.05,7.2965]
[1719418809351,7.294,137.1,137.05,7.2965]
[1719418809849,20.0,137.09,137.05,7.2965]
[1719418811362,27.2945,137.09,137.04,25.5394]
[1719418812355,7.2951,137.08,137.03,7.2975]
[1719418812640,20.0,137.07,137.03,7.2975]
[1719418814341,20.0,137.07,137.0,6.2384]
[1719418814536,20.0,137.08,137.06,7.296]
[1719418815234,20.0,137.08,137.05,18.241]
[1719418815747,20.0,137.08,137.05,25.5375]
[1719418816247,20.0,137.08,137.05,18.241]
[1719418816547,27.295,137.08,137.03,7.2974]
[1719418816847,26.88,137.05,137.03,7.2974]
[1719418818150,27.295,137.08,137.02,25.542]
[1719418818151,7.2956,137.07,137.02,25.542]
[1719418818340,20.0,137.06,137.02,18.2441]
[1719418818945,7.2961,137.06,137.02,18.2441]
[1719418819347,20.0,137.05,137.02,18.2441]
[1719418819737,20.0,137.05,137.03,7.2973]
[1719418819939,22.24421776,137.13,137.02,6.133]
[1719418820141,15.5532,137.13,137.1,7.2938]
[1719418820335,15.5532,137.13,137.08,18.2373]
[1719418820540,22.8459,137.13,137.08,25.5321]
[1719418821051,26.88,137.1,137.08,25.5321]
[1719418822049,7.292,137.14,137.09,7.2944]
[1719418822255,26.88,137.11,137.09,7.2944]
[1719418822636,16.6606,137.16,137.12,7.2925]
[1719418822834,7.57071215,137.17,137.13,7.292]
[1719418823165,10.15788162,137.19,137.13,7.2919]
[1719418823551,7.2898,137.18,137.14,18.2292]
[1719418823745,17.44718162,137.19,137.14,25.5209]
[1719418824138,7.2896,137.18,137.14,18.2292]
[1719418824639,20.0,137.17,137.11,18.2325]
[1719418824845,0.17,137.17,137.11,18.2325]
[1719418825158,7.4604,137.17,137.12,7.2925]
[1719418825350,20.0,137.16,137.12,7.2925]
[1719418825655,20.0,137.16,137.13,7.292]
[1719418825833,7.2897,137.18,137.11,18.2325]
[1719418825834,24.22216705,137.2,137.11,36.4645]
[1719418826040,20.0,137.19,137.11,36.4645]
[1719418826239,20.0,137.19,137.15,25.5188]
[1719418827169,20.0,137.19,137.12,18.2309]
[1719418827550,7.2902,137.17,137.12,18.2309]
[1719418827750,20.0,137.19,137.13,7.2922]
[1719418827943,7.2898,137.18,137.13,7.2922]
[1719418828144,20.0,137.17,137.13,7.2922]
[1719418829743,20.0,137.17,137.14,7.2918]
[1719418829949,20.0,137.18,137.14,7.2918]
[1719418831268,20.0,137.18,137.12,18.2309]
[1719418831445,24.39216705,137.2,137.12,18.2309]
[1719418831446,20.0,137.19,137.12,18.2309]
[1719418832265,7.2898,137.18,137.13,7.292]
[1719418832540,20.0,137.17,137.13,7.292]
[1719418832954,20.0,137.17,137.09,33.5799]
[1719418833150,42.78416705,137.2,137.09,33.5799]
[1719418833151,0.17,137.18,137.09,33.5799]
[1719418833358,18.5644,137.18,137.09,33.5799]
[1719418833667,20.0,137.17,137.09,33.5799]
[1719418833866,0.17,137.16,137.09,33.5799]
[1719418834248,7.2921,137.14,137.09,40.874]
[1719418834665,7.2927,137.13,137.08,7.2948]
[1719418835964,7.2919,137.14,137.09,7.2944]
[1719418836269,20.0,137.13,137.09,7.2944]
[1719418837066,20.0,137.13,137.11,7.293]
[1719418837371,20.17,137.15,137.11,7.2932]
[1719418837547,20.0,137.15,137.11,7.2932]
[1719418837748,20.0,137.15,137.1,18.2343]
[1719418837948,27.2897,137.18,137.13,7.292]
[1719418838155,27.2897,137.18,137.12,18.2318]
[1719418838156,7.2902,137.17,137.12,25.5245]
[1719418838361,20.0,137.16,137.12,25.5245]
[1719418838570,20.0,137.16,137.13,7.292]
[1719418838951,20.0,137.17,137.13,7.292]
[1719418839563,20.0,137.17,137.14,7.2914]
[1719418839763,20.0,137.18,137.14,7.2914]
[1719418840271,27.2897,137.18,137.14,7.2914]
[1719418840470,7.2902,137.17,137.12,25.5244]
[1719418841966,27.2898,137.18,137.13,7.2922]
[1719418842771,27.2898,137.18,137.14,7.2917]
[1719418842969,30.0,137.15,137.13,7.2921]
[1719418843767,30.0,137.15,137.14,25.5213]
[1719418844189,30.0,137.15,137.14,45.6913]
[1719418844475,22.5785,137.24,137.19,7.289]
[1719418844770,30.0,137.2,137.18,25.5131]
[1719418844958,30.0,137.2,137.19,29.3611]
[1719418844959,13.3334,137.2,137.19,29.3611]
[1719418845164,13.3334,137.2,137.19,29.7011]
[1719418845466,259.6,137.3,137.19,29.7011]
[1719418845467,259.6,137.3,137.22,18.2187]
[1719418845661,18.2053,137.33,137.22,18.2187]
[1719418845966,7.2847,137.28,137.23,7.2868]
[1719418846166,7.2847,137.28,137.22,25.506]
[1719418846470,7.2847,137.28,137.23,7.287]
[1719418847273,20.0,137.27,137.22,25.506]
[1719418847762,27.2853,137.27,137.22,25.506]
[1719418847962,7.2855,137.26,137.22,18.2187]
[1719418848471,20.0,137.27,137.2,7.2884]
[1719418848653,7.2868,137.24,137.19,47.5825]
[1719418849049,18.2124,137.27,137.15,21.5575]
[1719418849249,7.2866,137.24,137.19,7.2887]
[1719418849568,7.2866,137.24,137.19,7.289]
[1719418849569,20.0,137.23,137.19,7.289]
[1719418850175,20.0,137.23,137.21,7.288]
[1719418850370,27.2863,137.25,137.2,25.5099]
[1719418850875,7.2865,137.24,137.2,25.5099]
[1719418851078,20.0,137.23,137.2,25.5099]
[1719418851251,27.2861,137.25,137.2,25.5099]
[1719418851571,7.2868,137.24,137.19,7.289]
[1719418851964,27.2872,137.23,137.18,7.2895]
[1719418852164,7.2866,137.24,137.19,7.289]
[1719418852372,20.0,137.23,137.19,7.289]
[1719418854158,20.0,137.23,137.2,7.2886]
[1719418854360,27.2865,137.24,137.19,25.5116]
[1719418854667,7.287,137.23,137.19,18.2227]
[1719418855677,27.2867,137.24,137.19,25.5118]
[1719418856456,7.287,137.23,137.19,25.5118]
[1719418856662,7.287,137.23,137.18,7.2896]
[1719418857558,27.2866,137.24,137.19,7.2891]
[1719418860372,20.0,137.24,137.2,7.2884]
[1719418860578,20.0,137.24,137.22,7.2873]
[1719418860785,27.2854,137.26,137.21,25.5076]
[1719418861098,20.0,137.26,137.22,7.2874]
[1719418862379,7.2854,137.26,137.21,25.5076]
[1719418862563,20.0,137.25,137.22,7.2875]
[1719418862896,15.0357,137.28,137.24,7.286]
[1719418863072,22.4625,137.31,137.25,7.2859]
[1719418863267,7.2837,137.3,137.25,7.2859]
[1719418863772,7.2835,137.3,137.25,7.2859]
[1719418864372,20.0,137.29,137.26,7.2854]
[1719418864708,20.0,137.3,137.26,7.2854]
[1719418865165,20.0,137.3,137.27,18.2121]
[1719418865497,20.0,137.32,137.27,18.2121]
[1719418865665,20.0,137.32,137.29,18.2093]
[1719418865864,20.0,137.33,137.29,18.2093]
[1719418866511,20.0,137.33,137.26,18.2123]
[1719418866709,27.282,137.33,137.28,7.2841]
[1719418867893,7.2828,137.31,137.26,25.4972]
[1719418868290,7.2824,137.32,137.27,7.2848]
[1719418869596,7.2828,137.31,137.26,25.4975]
[1719418871009,7.2823,137.32,137.27,7.2848]
[1719418871198,20.0,137.33,137.28,18.2106]
[1719418872009,7.2822,137.32,137.28,18.2106]
[1719418872984,7.2827,137.32,137.27,7.2847]
[1719418873189,20.0,137.33,137.25,18.214]
[1719418873602,7.2823,137.32,137.27,7.2845]
[1719418873990,20.0,137.33,137.24,0.17]
[1719418874297,20.0,137.33,137.31,7.2826]
[1719418874496,20.0,137.35,137.31,25.4895]
[1719418875709,20.0,137.35,137.32,7.2822]
[1719418876007,20.0,137.35,137.33,7.2816]
[1719418876208,7.2794,137.38,137.33,7.2816]
[1719418876414,20.0,137.37,137.33,7.2816]